lending/lending_fUSD_20251114
["ID","MTS","AMOUNT","RATE_DAILY","PERIOD"]
[393968842,1763141708353,-405.0,0.00016428,2]
[393968843,1763141708379,-300.0,0.00016428,2]
[393968844,1763141708403,-300.0,0.00016428,2]
[393968845,1763141708430,-300.0,0.00016428,2]
[393968846,1763141708456,-1200.0,0.00016428,2]
[393968847,1763141731633,-405.02503289,0.00016429,2]
[393968853,1763141772194,1000.0,0.00013699,2]
[393968868,1763142247622,164.78,0.00013175,2]
[393968901,1763142631517,-1179.15582057,0.00016229,2]
[393968902,1763142631526,-496.46705718,0.0001632,2]
[393968903,1763142631535,-496.46705718,0.00016322,2]
[393968904,1763142631545,-496.46705718,0.00016324,2]
[393968905,1763142631553,-195.0,0.00016326,2]
[393968906,1763142631563,-250.0,0.00016326,2]
[393968907,1763142631574,-1004.12521198,0.00016327,2]
[393968908,1763142631583,-380.79531486,0.00016327,2]
[393968909,1763142631594,-819.20468514,0.00016327,2]
[393968910,1763142631603,-300.0,0.00016327,2]
[393968911,1763142631612,-2184.95681003,0.00016328,2]
[393968912,1763142631623,-5378.53161582,0.00016328,2]
[393968913,1763142631634,-4171.73504545,0.00016328,2]
[393968914,1763142631646,-131103.1215287,0.00016328,2]
[393968915,1763142631660,-500.0,0.00016329,2]
[393968916,1763142631668,-217.8176856,0.00016373,2]
[393968917,1763142631678,-602.68232179,0.00016373,2]
[393968918,1763142631687,-255.87981875,0.0001642,2]
[393968919,1763142631698,-340.0,0.00016423,2]
[393968920,1763142631707,-176.0,0.00016423,2]
[393968921,1763142631716,-550.0,0.00016423,2]
[393968922,1763142631725,-500.0,0.00016423,2]
[393968923,1763142631735,-500.0,0.00016423,2]
[393968924,1763142631744,-501.37804262,0.00016423,2]
[393968925,1763142631754,-301.56028555,0.00016423,2]
[393968926,1763142631763,-500.0,0.00016423,2]
[393968927,1763142631773,-614.4933649,0.00016423,2]
[393968928,1763142631784,-455.99275888,0.00016423,2]
[393968929,1763142631793,-500.0,0.00016423,2]
[393968930,1763142631803,-614.4933649,0.00016423,2]
[393968931,1763142631812,-614.4933649,0.00016423,2]
[393968932,1763142631824,-500.0,0.00016423,2]
[393968933,1763142631834,-614.4933649,0.00016423,2]
[393968934,1763142631843,-614.4933649,0.00016423,2]
[393968935,1763142631852,-500.0,0.00016423,2]
[393968936,1763142631861,-614.4933649,0.00016423,2]
[393968937,1763142631871,-614.4933649,0.00016423,2]
[393968938,1763142631880,-614.4933649,0.00016423,2]
[393968939,1763142631889,-614.4933649,0.00016423,2]
[393968940,1763142631898,-614.4933649,0.00016423,2]
[393968941,1763142631907,-614.4933649,0.00016423,2]
[393968942,1763142631916,-614.4933649,0.00016423,2]
[393968943,1763142631927,-614.4933649,0.00016423,2]
[393968945,1763142631936,-614.4933649,0.00016423,2]
[393968947,1763142631945,-614.4933649,0.00016423,2]
[393968949,1763142631954,-614.4933649,0.00016423,2]
[393968951,1763142631963,-614.4933649,0.00016423,2]
[393968953,1763142631972,-614.4933649,0.00016423,2]
[393968955,1763142631981,-614.4933649,0.00016423,2]
[393968957,1763142631991,-614.4933649,0.00016423,2]
[393968959,1763142632000,-614.4933649,0.00016423,2]
[393968961,1763142632009,-614.4933649,0.00016423,2]
[393968966,1763142632234,-614.4933649,0.00016423,2]
[393968967,1763142632244,-614.4933649,0.00016423,2]
[393968968,1763142632253,-614.4933649,0.00016423,2]
[393968969,1763142632263,-614.4933649,0.00016423,2]
[393968970,1763142632272,-614.4933649,0.00016423,2]
[393968971,1763142632282,-614.4933649,0.00016423,2]
[393968972,1763142632291,-614.4933649,0.00016423,2]
[393968973,1763142632300,-614.4933649,0.00016423,2]
[393968974,1763142632309,-614.4933649,0.00016423,2]
[393968975,1763142632320,-614.4933649,0.00016423,2]
[393968976,1763142632330,-614.4933649,0.00016423,2]
[393968977,1763142632339,-614.4933649,0.00016423,2]
[393968978,1763142632348,-614.4933649,0.00016423,2]
[393968979,1763142632358,-614.4933649,0.00016423,2]
[393968980,1763142632366,-614.4933649,0.00016423,2]
[393968981,1763142632376,-614.4933649,0.00016423,2]
[393968982,1763142632385,-614.4933649,0.00016423,2]
[393968983,1763142632393,-614.4933649,0.00016423,2]
[393968984,1763142632402,-614.4933649,0.00016423,2]
[393968985,1763142632411,-614.4933649,0.00016423,2]
[393968986,1763142632419,-614.4933649,0.00016423,2]
[393968987,1763142632428,-614.4933649,0.00016423,2]
[393968988,1763142632436,-614.4933649,0.00016423,2]
[393968989,1763142632445,-614.4933649,0.00016423,2]
[393968990,1763142632454,-614.4933649,0.00016423,2]
[393968991,1763142632463,-614.4933649,0.00016423,2]
[393968992,1763142632472,-614.4933649,0.00016423,2]
[393968993,1763142632481,-614.4933649,0.00016423,2]
[393968994,1763142632493,-614.4933649,0.00016423,2]
[393968995,1763142632504,-614.4933649,0.00016423,2]
[393968996,1763142632514,-614.4933649,0.00016423,2]
[393968997,1763142632524,-614.4933649,0.00016423,2]
[393968998,1763142632536,-614.4933649,0.00016423,2]
[393968999,1763142632545,-499.99999999,0.00016423,2]
[393969000,1763142632554,-601.84203092,0.00016423,2]
[393969001,1763142632563,-601.84203092,0.00016423,2]
[393969002,1763142632574,-601.84203092,0.00016423,2]
[393969003,1763142632584,-601.84203092,0.00016423,2]
[393969004,1763142632593,-601.84203092,0.00016423,2]
[393969005,1763142632603,-601.84203092,0.00016423,2]
[393969006,1763142632612,-601.84203092,0.00016423,2]
[393969007,1763142632621,-601.84203092,0.00016423,2]
[393969008,1763142632630,-601.84203092,0.00016423,2]
[393969009,1763142632640,-601.84203092,0.00016423,2]
[393969010,1763142632651,-601.84203092,0.00016423,2]
[393969011,1763142632662,-601.84203092,0.00016423,2]
[393969012,1763142632672,-601.84203092,0.00016423,2]
[393969013,1763142632682,-601.84203092,0.00016423,2]
[393969014,1763142632691,-601.84203092,0.00016423,2]
[393969015,1763142632701,-601.84203092,0.00016423,2]
[393969016,1763142632712,-601.84203092,0.00016423,2]
[393969017,1763142632722,-601.84203092,0.00016423,2]
[393969018,1763142632733,-601.84203092,0.00016423,2]
[393969019,1763142632743,-601.84203092,0.00016423,2]
[393969020,1763142632754,-601.84203092,0.00016423,2]
[393969021,1763142632764,-601.84203092,0.00016423,2]
[393969022,1763142632774,-601.84203092,0.00016423,2]
[393969023,1763142632784,-601.84203092,0.00016423,2]
[393969024,1763142632794,-601.84203093,0.00016423,2]
[393969025,1763142632804,-601.84203093,0.00016423,2]
[393969026,1763142632814,-601.84203093,0.00016423,2]
[393969027,1763142632828,-601.84203093,0.00016423,2]
[393969028,1763142632837,-601.84203093,0.00016423,2]
[393969029,1763142632847,-601.84203093,0.00016423,2]
[393969030,1763142632856,-601.84203093,0.00016423,2]
[393969031,1763142632866,-601.84203093,0.00016423,2]
[393969032,1763142632876,-601.84203092,0.00016423,2]
[393969033,1763142632885,-3757.71,0.00016428,2]
[393969034,1763142632895,-502.19,0.00016429,2]
[393969035,1763142632905,-168.06,0.00016437,2]
[393969036,1763142632914,-164.78,0.00016469,2]
[393969037,1763142632923,-500.0,0.00016473,2]
[393969038,1763142632934,-500.0,0.00016473,2]
[393969039,1763142632943,-500.0,0.00016473,2]
[393969040,1763142632952,-618.79121709,0.00016473,2]
[393969041,1763142632962,-500.0,0.00016473,2]
[393969042,1763142632971,-500.0,0.00016473,2]
[393969043,1763142632980,-500.0,0.00016473,2]
[393969044,1763142632990,-406.97735465,0.00016473,2]
[393969045,1763142632999,-359.51969312,0.00016566,2]
[393969050,1763142633167,-164.51090695,0.00016566,2]
[393969051,1763142633176,-514.58,0.00016632,2]
[393969052,1763142633187,-14710.84661426,0.00016641,2]
[393969053,1763142633199,-3439.27338574,0.00016641,2]
[393969054,1763142633208,-10888.7,0.00016666,2]
[393969055,1763142633218,-502.19,0.00016703,2]
[393969056,1763142633227,-524.03060006,0.00016714,2]
[393969057,1763142633238,-999.0,0.00016822,3]
[393969058,1763142633248,-524.03060006,0.00016862,2]
[393969059,1763142633258,-1000.0,0.00016886,2]
[393969060,1763142633268,-502.19,0.00016977,2]
[393969061,1763142633277,-250.0,0.00017,2]
[393969062,1763142633287,-524.03060006,0.00017011,2]
[393969063,1763142633297,-1000.0,0.00017021,2]
[393969064,1763142633307,-1000.0,0.00017021,2]
[393969065,1763142633316,-500.0,0.00017022,2]
[393969066,1763142633328,-434.40541031,0.00017022,2]
[393969067,1763142633338,-162.4731927,0.00017022,2]
[393969068,1763142633348,-255.58407534,0.00017022,2]
[393969069,1763142633359,-19636.47459291,0.00017024,2]
[393969070,1763142633371,-28780.46540709,0.00017024,2]
[393969071,1763142633381,-524.03060006,0.00017159,2]
[393969072,1763142633390,-954.0,0.00017211,2]
[393969073,1763142633400,-954.0,0.00017244,2]
[393969074,1763142633410,-416.18215063,0.00017251,2]
[393969075,1763142633422,-86.00784937,0.00017251,2]
[393969076,1763142633431,-524.03060006,0.00017307,2]
[393969077,1763142633442,-167.95372605,0.00017338,2]
[393969078,1763142633454,-786.04627395,0.00017338,2]
[393969079,1763142633466,-589.2783598,0.0001739,2]
[393969080,1763142633478,-364.7216402,0.0001739,2]
[393969081,1763142633489,-118.1883598,0.00017403,2]
[393969082,1763142633504,-835.8116402,0.00017403,2]
[393969083,1763142633516,-524.03060006,0.00017455,2]
[393969084,1763142633528,-166.78,0.00017495,2]
[393969085,1763142633539,-502.22923532,0.00017525,2]
[393969086,1763142633550,-1500.0,0.00017568,2]
[393969087,1763142633563,-1500.0,0.00017568,2]
[393969088,1763142633579,-2500.0,0.0001759,2]
[393969089,1763142633589,-524.03060006,0.00017604,2]
[393969090,1763142633598,-168.06,0.00017611,2]
[393969091,1763142633608,-954.0,0.00017633,2]
[393969092,1763142633618,-2259.0,0.00017737,2]
[393969093,1763142633627,-524.03060006,0.00017752,2]
[393969094,1763142633637,-1000.0,0.000178,2]
[393969095,1763142633649,-162.57289855,0.0001783,2]
[393969096,1763142633659,-814.851,0.0001783,2]
[393969097,1763142633669,-420.0,0.00017845,2]
[393969098,1763142633678,-2287.9543572,0.000179,2]
[393969099,1763142633688,-3429.95530721,0.000179,2]
[393969100,1763142633698,-524.03060006,0.000179,2]
[393969101,1763142633707,-1051.35403463,0.000179,2]
[393969102,1763142633717,-196.63003146,0.000179,3]
[393969103,1763142633727,-1680.0,0.00017934,2]
[393969104,1763142633738,-500.0,0.00017957,2]
[393969105,1763142633749,-500.0,0.00017957,2]
[393969106,1763142633759,-500.0,0.00017957,2]
[393969107,1763142633768,-500.0,0.00017957,2]
[393969108,1763142633778,-500.0,0.00017957,2]
[393969109,1763142633787,-562.27093051,0.00017957,2]
[393969110,1763142633796,-196.29872544,0.00017957,2]
[393969111,1763142633806,-13764.38311479,0.00017957,2]
[393969112,1763142633816,-195.0,0.00017958,2]
[393969113,1763142633829,-250.0,0.00017958,2]
[393969114,1763142633839,-300.0,0.00017958,2]
[393969115,1763142633848,-300.0,0.00017958,2]
[393969116,1763142633858,-250.0,0.00017958,2]
[393969117,1763142633868,-300.0,0.00017958,2]
[393969118,1763142633878,-300.0,0.00017958,2]
[393969119,1763142633888,-300.0,0.00017958,2]
[393969120,1763142633897,-408.31362115,0.00017959,2]
[393969121,1763142633907,-500.70078242,0.00017959,2]
[393969122,1763142633917,-193.0,0.00017959,2]
[393969123,1763142633927,-165.49342088,0.00017973,2]
[393969124,1763142633945,-334.50657912,0.00017973,2]
[393969125,1763142633955,-500.0,0.00017973,2]
[393969126,1763142633964,-627.33981294,0.00017973,2]
[393969127,1763142633974,-500.77312102,0.00017973,2]
[393969128,1763142633983,-413.58495286,0.00017973,2]
[393969129,1763142633992,-162.78564232,0.00017973,2]
[393969130,1763142634002,-501.25513188,0.00017973,2]
[393969131,1763142634011,-500.0,0.00017973,2]
[393969132,1763142634020,-5866.1314209,0.00017989,5]
[393969133,1763142634029,-151.0,0.00017997,2]
[393969134,1763142634038,-1178.14453,0.00017998,2]
[393969135,1763142634047,-974.1137948,0.00017999,2]
[393969136,1763142634056,-150.59242395,0.00017999,2]
[393969137,1763142634065,-300.0,0.00017999,2]
[393969138,1763142634077,-300.0,0.00017999,2]
[393969139,1763142634086,-500.0,0.00017999,2]
[393969140,1763142634095,-500.0,0.00017999,2]
[393969141,1763142634104,-150.0,0.00017999,2]
[393969142,1763142634114,-500.0,0.00017999,2]
[393969143,1763142634123,-500.0,0.00017999,2]
[393969144,1763142634132,-300.0,0.00017999,2]
[393969145,1763142634142,-300.0,0.00017999,2]
[393969146,1763142634151,-276.36384412,0.00017999,2]
[393969147,1763142634160,-251.01884101,0.00017999,2]
[393969148,1763142634170,-250.0,0.00017999,2]
[393969149,1763142634179,-150.0,0.00017999,2]
[393969150,1763142634188,-191.66639441,0.00017999,2]
[393969151,1763142634197,-186.09250165,0.00017999,2]
[393969152,1763142634206,-500.0,0.00017999,2]
[393969153,1763142634215,-540.44445142,0.00017999,2]
[393969154,1763142634224,-500.0,0.00017999,2]
[393969155,1763142634233,-300.0,0.00017999,2]
[393969156,1763142634243,-500.0,0.00017999,2]
[393969157,1763142634253,-500.0,0.00017999,2]
[393969158,1763142634263,-230.79144782,0.00017999,2]
[393969159,1763142634272,-500.0,0.00017999,2]
[393969160,1763142634281,-500.0,0.00017999,2]
[393969161,1763142634290,-500.0,0.00017999,2]
[393969162,1763142634299,-150.0,0.00017999,2]
[393969163,1763142634308,-463.0,0.00017999,2]
[393969164,1763142634319,-156.15511433,0.00017999,2]
[393969165,1763142634328,-500.0,0.00017999,2]
[393969166,1763142634337,-3823.0,0.00018,2]
[393969167,1763142634347,-73801.70330038,0.00018,2]
[393969168,1763142634358,-29596.26120072,0.00018,2]
[393969173,1763142637465,-2461.14248626,0.000179,2]
[393969174,1763142637475,-36182.25751434,0.00018,2]
[393969175,1763142637487,-129881.49337563,0.00018,2]
[393969176,1763142637496,-500.0,0.00018,2]
[393969177,1763142637505,-264.501,0.00018,2]
[393969178,1763142637515,-150.0,0.00018,2]
[393969179,1763142637524,-250.0,0.00018,2]
[393969180,1763142637533,-150.0,0.00018,2]
[393969181,1763142637542,-150.0,0.00018,2]
[393969182,1763142637551,-150.0,0.00018,2]
[393969183,1763142637560,-150.0,0.00018,2]
[393969184,1763142637571,-150.0,0.00018,2]
[393969185,1763142637580,-3125756.87680221,0.00018,2]
[393969186,1763142637627,-20726.55966546,0.00018,2]
[393969187,1763142637639,-1793.87499975,0.00018,2]
[393969188,1763142637680,-293755.62822987,0.00018,2]
[393969199,1763142642732,-500.0,0.00016225,2]
[393969200,1763142642743,-390915.84700056,0.00018,2]
[393969207,1763142643841,-5389396.48069512,0.00018,2]
[393969208,1763142644137,-3264.03616872,0.00018,2]
[393969211,1763142644736,193.21,0.00025087,120]
[393969212,1763142644962,193.21,0.00027368,120]
[393969216,1763142645692,-4803.84,0.00018,2]
[393969217,1763142645748,-61239.96925515,0.00018,2]
[393969218,1763142645962,-455.0,0.00018,2]
[393969219,1763142646017,-1208.25826342,0.00018,2]
[393969233,1763142922394,670.85097775,0.00015627,2]
[393969234,1763142922658,666.0,0.00015627,2]
[393969235,1763142923113,666.0,0.00015627,2]
[393969236,1763142923386,666.0,0.00015627,2]
[393969237,1763142923651,666.0,0.00015627,2]
[393969261,1763143492781,-166.66,0.000161,2]
[393969262,1763143492807,-160.0,0.00016325,2]
[393969263,1763143492829,-300.0,0.00016326,2]
[393969264,1763143492851,-1200.0,0.00016326,2]
[393969265,1763143492874,-328.44363988,0.00016327,2]
[393969266,1763143492899,-500.0,0.00016327,2]
[393969267,1763143492926,-500.0,0.00016327,2]
[393969268,1763143492960,-500.0,0.00016327,2]
[393969269,1763143492987,-500.0,0.00016327,2]
[393969270,1763143493012,-513.10250976,0.00016327,2]
[393969271,1763143493036,-500.0,0.00016327,2]
[393969272,1763143493063,-500.0,0.00016327,2]
[393969273,1763143493087,-500.0,0.00016327,2]
[393969274,1763143493112,-500.0,0.00016327,2]
[393969275,1763143493135,-500.0,0.00016327,2]
[393969276,1763143493160,-500.0,0.00016327,2]
[393969277,1763143493185,-500.0,0.00016327,2]
[393969278,1763143493209,-500.0,0.00016327,2]
[393969279,1763143493232,-500.0,0.00016327,2]
[393969280,1763143493261,-60044.2477,0.00016328,2]
[393969281,1763143493284,-500.0,0.00016373,2]
[393969282,1763143493308,-166.66,0.00016439,2]
[393969283,1763143493329,-5645.7,0.00016717,2]
[393969284,1763143493352,-166.66,0.00016778,2]
[393969285,1763143493376,-150.0,0.000169,2]
[393969286,1763143493397,-1000.0,0.00016921,2]
[393969287,1763143493419,-1000.0,0.00016924,2]
[393969288,1763143493440,-250.0,0.00017,2]
[393969289,1763143493461,-224.65,0.00017001,2]
[393969290,1763143493485,-2000.0,0.00017042,2]
[393969291,1763143493508,-166.66,0.00017117,2]
[393969292,1763143493530,-250.0,0.00017176,2]
[393969293,1763143493552,-2751.0,0.00017195,2]
[393969294,1763143493576,-168.0,0.0001729,2]
[393969295,1763143493598,-168.0,0.00017304,2]
[393969296,1763143493620,-166.66,0.00017456,2]
[393969297,1763143493642,-484.55066968,0.00017468,2]
[393969298,1763143493665,-168.0,0.00017494,2]
[393969299,1763143493688,-2000.0,0.000175,2]
[393969300,1763143493712,-168.0,0.00017582,2]
[393969301,1763143493735,-168.0,0.00017699,2]
[393969302,1763143493764,-250.0,0.0001771,2]
[393969303,1763143493786,-300.0,0.0001771,2]
[393969304,1763143493808,-300.0,0.0001771,2]
[393969305,1763143493829,-300.0,0.0001771,2]
[393969306,1763143493856,-168.0,0.0001777,2]
[393969307,1763143493879,-166.66,0.00017795,2]
[393969308,1763143493901,-651.881,0.00017834,2]
[393969309,1763143493923,-360.0,0.00017844,2]
[393969310,1763143493960,-168.0,0.0001785,2]
[393969311,1763143493985,-2500.0,0.000179,2]
[393969312,1763143494010,-14927.68569529,0.000179,2]
[393969313,1763143494034,-459.5899,0.000179,2]
[393969314,1763143494057,-818.31747235,0.000179,2]
[393969315,1763143494079,-282.9748613,0.000179,2]
[393969316,1763143494104,-168.0,0.00017931,2]
[393969317,1763143494128,-1680.0,0.00017933,2]
[393969318,1763143494152,-168.0,0.00017954,2]
[393969319,1763143494175,-250.0,0.00017958,2]
[393969320,1763143494198,-300.0,0.00017959,2]
[393969321,1763143494221,-500.0,0.00017973,2]
[393969322,1763143494246,-465.67133023,0.00017973,2]
[393969323,1763143494268,-500.0,0.00017973,2]
[393969324,1763143494290,-500.65,0.0001799,2]
[393969325,1763143494312,-500.65,0.0001799,2]
[393969326,1763143494334,-500.65,0.0001799,2]
[393969327,1763143494357,-500.65,0.0001799,2]
[393969328,1763143494385,-500.65,0.0001799,2]
[393969329,1763143494408,-80.97522151,0.0001799,2]
[393969330,1763143503801,-1189.62454994,0.0001783,2]
[393969331,1763143503825,-82.56477849,0.0001799,2]
[393969332,1763143503849,-163.54,0.0001799,2]
[393969333,1763143503872,-163.54,0.0001799,2]
[393969334,1763143503896,-151.0,0.00017997,2]
[393969335,1763143503921,-1200.0,0.00017998,2]
[393969336,1763143503948,-300.0,0.00017998,2]
[393969337,1763143503973,-300.0,0.00017998,2]
[393969338,1763143504000,-300.0,0.00017999,2]
[393969339,1763143504024,-300.0,0.00017999,2]
[393969340,1763143504048,-245.47636787,0.00017999,2]
[393969341,1763143504268,-500.0,0.00017999,2]
[393969342,1763143504294,-300.0,0.00017999,2]
[393969343,1763143504316,-500.0,0.00017999,2]
[393969344,1763143504340,-178.90885274,0.00017999,2]
[393969345,1763143504364,-500.0,0.00017999,2]
[393969346,1763143504388,-154.08378722,0.00017999,2]
[393969347,1763143504411,-3271.0,0.00018,2]
[393969348,1763143504436,-90200.26166374,0.00018,2]
[393969349,1763143505740,-100000.0,0.00018,2]
[393969350,1763143507044,-1048.25489795,0.00017999,2]
[393969351,1763143507070,-98951.74510205,0.00018,2]
[393969354,1763143525763,-653.0759502,0.000179,2]
[393969355,1763143525790,-206.1498255,0.0001791,2]
[393969356,1763143525814,-300.0,0.00017955,2]
[393969357,1763143525838,-162346.7742243,0.00018,2]
[393969362,1763143543306,500.0,0.00041368,60]
[393969363,1763143543560,362.1,0.00041368,60]
[393969364,1763143547463,500.0,0.00041368,60]
[393969365,1763143547723,500.0,0.00041368,60]
[393969366,1763143547980,500.0,0.00041368,60]
[393969367,1763143548228,500.0,0.00041368,60]
[393969368,1763143548479,500.0,0.00041368,60]
[393969369,1763143548738,500.0,0.00041368,60]
[393969370,1763143549043,314.07999602,0.00041368,60]
[393969377,1763143673329,500.0,0.00041368,60]
[393969378,1763143673602,572.4,0.00041368,60]
[393969382,1763143675543,500.0,0.00041368,60]
[393969383,1763143675788,500.0,0.00041368,60]
[393969384,1763143676047,500.0,0.00041368,60]
[393969385,1763143676293,500.0,0.00041368,60]
[393969386,1763143676538,500.0,0.00041368,60]
[393969387,1763143676885,276.69839103,0.00041368,60]
[393969388,1763143682405,1237.73,0.00041368,60]
[393969389,1763143682657,1237.73,0.00041368,60]
[393969390,1763143683138,1237.73,0.00041368,60]
[393969391,1763143683377,1237.73,0.00041368,60]
[393969393,1763143683621,1237.73,0.00041368,60]
[393969394,1763143683877,1237.73,0.00041368,60]
[393969395,1763143684103,1237.73,0.00041368,60]
[393969396,1763143684334,1237.73,0.00041368,60]
[393969397,1763143684584,1237.73,0.00041368,60]
[393969398,1763143684977,1237.73,0.00041368,60]
[393969399,1763143685242,1237.73,0.00041368,60]
[393969400,1763143685467,1237.73,0.00041368,60]
[393969401,1763143685712,1237.73,0.00041368,60]
[393969403,1763143686080,1237.73,0.00041368,60]
[393969404,1763143686320,1237.73,0.00041368,60]
[393969406,1763143686569,1237.73,0.00041368,60]
[393969407,1763143686828,1237.73,0.00041368,60]
[393969408,1763143687067,1237.73,0.00041368,60]
[393969409,1763143687298,1237.73,0.00041368,60]
[393969410,1763143687605,1237.73,0.00041368,60]
[393969411,1763143687846,1237.73,0.00041368,60]
[393969412,1763143688111,1237.73,0.00041368,60]
[393969413,1763143688369,1237.73,0.00041368,60]
[393969414,1763143688758,1237.8224146,0.00041368,60]
[393969416,1763143704843,500.0,0.00041368,60]
[393969417,1763143705084,500.0,0.00041368,60]
[393969418,1763143705339,500.0,0.00041368,60]
[393969419,1763143705589,500.0,0.00041368,60]
[393969420,1763143705825,500.0,0.00041368,60]
[393969421,1763143706096,636.05311234,0.00041368,60]
[393969422,1763143708097,500.0,0.00041368,60]
[393969423,1763143708383,500.0,0.00041368,60]
[393969424,1763143708630,500.0,0.00041368,60]
[393969425,1763143708865,191.73017167,0.00041368,60]
[393969456,1763143831725,-150.0,0.00017074,2]
[393969457,1763143831735,-247.84647269,0.0001782,2]
[393969458,1763143831778,-818.31747235,0.0001782,2]
[393969471,1763143832745,-1.20908982,0.0001782,2]
[393969477,1763143837694,-1268.45702514,0.0001782,2]
[393969478,1763143837704,-1200.0,0.00017899,2]
[393969479,1763143837713,-1000.0,0.000179,2]
[393969480,1763143837723,-6456.81344904,0.000179,2]
[393969481,1763143837733,-235.8123844,0.000179,2]
[393969482,1763143837756,-174.42131315,0.000179,2]
[393969483,1763143837770,-1852.42,0.00017938,2]
[393969484,1763143837780,-1000.0,0.00017964,2]
[393969485,1763143837790,-501.57452032,0.00017973,2]
[393969486,1763143837802,-1002.0323,0.00017999,2]
[393969487,1763143837812,-1200.0,0.00017999,2]
[393969488,1763143837822,-500.0,0.00017999,2]
[393969489,1763143837833,-279.2336122,0.00017999,2]
[393969490,1763143837843,-457.85865106,0.00017999,2]
[393969491,1763143837854,-2619.0,0.00018,2]
[393969492,1763143837864,-3237805.24792253,0.00018,2]
[393969493,1763143837878,-98460.01841428,0.00018,2]
[393969494,1763143839695,-3128.66858438,0.00018,2]
[393969496,1763143839749,-961.9082045,0.00018,2]
[393969498,1763143839762,-5389396.48069512,0.00018,2]
[393969560,1763143843122,-841376.47960656,0.00018,2]
[393969561,1763143843133,-315365.4625102,0.00018,2]
[393969562,1763143843144,-150.0,0.00018,2]
[393969563,1763143843158,-264.501,0.00018,2]
[393969564,1763143843170,-250.0,0.00018,2]
[393969565,1763143843180,-200.0,0.00018,2]
[393969566,1763143843191,-150.0,0.00018,2]
[393969567,1763143843201,-150.0,0.00018,2]
[393969568,1763143843212,-150.0,0.00018,2]
[393969569,1763143843222,-150.0,0.00018,2]
[393969570,1763143843231,-4113.1739135,0.00018,2]
[393969571,1763143843241,-150.0,0.00018,2]
[393969572,1763143843252,-55101.2116369,0.00018,2]
[393969573,1763143843262,-3720.6938893,0.00018,2]
[393969574,1763143843272,-575.0,0.00018,2]
[393969575,1763143843282,-3429.0,0.00018,2]
[393969576,1763143843292,-625.487,0.00018,2]
[393969577,1763143843305,-1318.0,0.00018,2]
[393969578,1763143843320,-1618.99,0.00018,2]
[393969579,1763143843330,-821.0,0.00018,2]
[393969580,1763143843341,-281.75197015,0.00018,2]
[393969581,1763143843352,-150.0,0.00018,2]
[393969582,1763143843362,-500.0,0.00018,2]
[393969583,1763143843372,-150.0,0.00018,2]
[393969584,1763143843382,-813.0,0.00018,2]
[393969585,1763143843393,-1275.0,0.00018,2]
[393969587,1763143843404,-385.7015763,0.00018,2]
[393969589,1763143843414,-907.0,0.00018,2]
[393969590,1763143843424,-536.13673585,0.00018,2]
[393969591,1763143843435,-156.82799418,0.00018,2]
[393969592,1763143843445,-1190.0,0.00018,2]
[393969593,1763143843455,-269.65,0.00018,2]
[393969594,1763143843464,-6669.0,0.00018,2]
[393969595,1763143843474,-2145.0,0.00018,2]
[393969596,1763143843483,-6486.0,0.00018,2]
[393969597,1763143843494,-560.0,0.00018,2]
[393969598,1763143843503,-500.0,0.00018001,2]
[393969599,1763143843513,-500.0,0.00018001,2]
[393969600,1763143843524,-425.0,0.00018001,2]
[393969601,1763143843537,-500.0,0.00018001,2]